Cogmind - Beta 14 @@@ ROGUE MODE // 2024.09.13 @ 20:49:30 Player: star Result: Destroyed by 14-7G3(R) with Subdweller Beam Cannon Performance ------------- Evolutions (0) 0 Regions Visited (3) 600 Robots Destroyed (15) 75 Value Destroyed (442) 442 Prototype IDs (11) 220 Alien Tech Used (0) 0 Bonus (-107) -107 TOTAL SCORE: 1230 Bonus ------- Friendly Fire -107 Cogmind --------- Core Integrity 0/250 Matter 300/300 Energy 199/200 System Corruption 0% Temperature Cool (9) Movement Rolling (110) Location -10/Subcaves Parts ------- > --- POWER (1) -------- Subdweller Power Source > --- PROPULSION (2) --- Subdweller Monowheel Subdweller Monowheel > --- UTILITY (2) ------ Small Storage Unit Power Shielding > --- WEAPON (2) ------- Heavy Hammer Heavy Hammer > --- INVENTORY (8) ---- Gun Armor Makeshift Hacking Suite Riot Gun Riot Gun Mini Grenade Launcher Mini Grenade Launcher Subdweller Shrapnel Launcher Multitool Peak State ------------ > --- POWER ------------ Subdweller Power Source > --- PROPULSION ------- Subdweller Monowheel Subdweller Monowheel > --- UTILITY ---------- Small Storage Unit Power Shielding > --- WEAPON ----------- Heavy Hammer Heavy Hammer > --- INVENTORY -------- Gun Armor Makeshift Hacking Suite Riot Gun Riot Gun Shotgun Mini Grenade Launcher Mini Grenade Launcher Subdweller Shrapnel Launcher [Rating: 14] Favorites ----------- Power Subdweller Power Source Engine Subdweller Power Source Propulsion Aluminum Leg Leg Aluminum Leg Wheel Subdweller Monowheel Utility Small Storage Unit Device Trap Extractor Storage Small Storage Unit Protection Power Shielding Weapon Shotgun Energy Gun Small Laser Ballistic Gun Shotgun Launcher Mini Grenade Launcher Special Weapon Multitool Impact Weapon Heavy Hammer Build | -11 -10 -10 -10 ------- Run | Yrd Mat Min Sub Slots Evolved . | . . . . Power . | . . . . Propulsion . | . . . . Utility . | . . . . Weapon . | . . . . Parts Attached 26 | 7 7 . 12 Power 2 | 1 . . 1 Engine 2 | 1 . . 1 Core . | . . . . Reactor . | . . . . Propulsion 8 | 2 3 . 3 Treads . | . . . . Leg 3 | . 3 . . Wheel 5 | 2 . . 3 Hover . | . . . . Flight . | . . . . Utility 4 | 1 1 . 2 Device 1 | . 1 . . Storage 2 | 1 . . 1 Processor . | . . . . Hackware . | . . . . Protection 1 | . . . 1 Artifact . | . . . . Weapon 12 | 3 3 . 6 Energy Gun 1 | 1 . . . Energy Cannon . | . . . . Ballistic Gun 6 | 2 2 . 2 Ballistic Cannon . | . . . . Launcher 1 | . 1 . . Special Weapon 1 | . . . 1 Impact Weapon 3 | . . . 3 Slashing Weapon . | . . . . Piercing Weapon . | . . . . Special Melee Weapon . | . . . . Unidentified Prototypes . | . . . . Parts Lost 4 | . 1 . 3 Power 1 | . . . 1 Propulsion 2 | . 1 . 1 Utility . | . . . . Weapon 1 | . . . 1 Highest Loss Streak 2 | . 1 . 2 To Critical Strikes . | . . . . Average Slot Usage (%) 97 | . 98 100 95 Engine 12 | . 14 14 11 Leg 14 | . 16 28 10 Wheel 13 | . 11 . 16 Device 8 | . 13 14 5 Storage 13 | . 14 14 13 Protection 5 | . . . 8 Ballistic Gun 16 | . 26 14 12 Launcher 2 | . 1 14 . Impact Weapon 8 | . . . 14 Peak Build Rating 14 | 6 11 11 14 Average Rating 11 | 4 9 11 12 On Entrance 7 | . 6 11 11 Naked Turns . | . . . . Heaviest Build 18 | 12 18 16 18 Greatest Support 40 | 26 26 20 40 Greatest Overweight (x) 1 | . 1 . 1 Average Overweight (x) . | . . . . Largest Inventory Capacity 8 | 8 8 8 8 Average Capacity 7 | 6 8 8 7 Most Carried 8 | . 8 8 8 Average Carried 6 | . 6 8 7 Final Capacity 8 | 8 8 8 8 Final Carried 8 | . 8 8 8 Class Distribution -------------------- 100% | Mutant Dominant Class ---------------- Mutant | -10/Materials Mutant | -10/Mines Mutant | -10/Subcaves Resources | -11 -10 -10 -10 ----------- Run | Yrd Mat Min Sub Matter Collected 764 | 244 153 . 367 Remotely . | . . . . Salvage Created 537 | . 270 . 267 Parts 34 | . 18 . 16 Haulers Intercepted 1 | . 1 . . Recyclers Shooed . | . . . . Parts Field Recycled . | . . . . Retrieved Matter . | . . . . Parts Self-Destructed 4 | . . . 4 Prevented . | . . . . Kills | -11 -10 -10 -10 ------- Run | Yrd Mat Min Sub Combat Hostiles Destroyed 10 | . 3 . 7 Guns 9 | . 3 . 6 Classes Destroyed 8 | . 5 1 2 Builder 1 | . 1 . . Tunneler 1 | . . 1 . Hauler 1 | . 1 . . Recycler 1 | . 1 . . Operator 1 | . 1 . . Grunt 5 | . 3 . 2 Artisan 2 | . . . 2 Subdweller 5 | . . . 5 Best Kill Streak 4 | . 3 1 4 Combat Bots Only 4 | . 2 . 4 Max Kills in Single Turn 2 | . 2 1 1 Gunslinging . | . . . . Exploded . | . . . . Melee . | . . . . Uniques/NPCs Destroyed . | . . . . Combat | -11 -10 -10 -10 -------- Run | Yrd Mat Min Sub Hostile Shots Fired 65 | . 19 8 38 Missed 14 | . 4 2 8 Damage Taken 919 | . 198 96 625 Core 251 | . 73 30 148 Absorbed by Shields . | . . . . Core Remaining (%) 100 | 100 . . . Volleys Fired 52 | . 25 4 23 Largest 2 | . 2 2 2 Hottest 53 | . 53 53 46 Shots Fired 102 | . 50 8 44 Gun 96 | . 49 4 43 Cannon . | . . . . Launcher 5 | . 1 4 . Special 1 | . . . 1 Kinetic 96 | . 49 4 43 Thermal 1 | . . . 1 Explosive 5 | . 1 4 . Electromagnetic . | . . . . Robot Hit Streak 15 | . 7 5 15 Robot Miss Streak 4 | . 4 2 2 Penetration Max . | . . . . Secondary Targets 2 | . . . 2 Max Gunslinging Chain 1 | . . . 1 Shots Hit Robots 67 | . 25 4 38 Core Hits 32 | . 16 1 15 Critical Kills 1 | . . . 1 Critical Parts Destroyed 2 | . . . 2 Critical Strikes 3 | . . . 3 Destroy 1 | . . . 1 Smash 2 | . . . 2 Melee Attacks 8 | . . . 8 Impact 8 | . . . 8 Slashing . | . . . . Piercing . | . . . . Sneak Attacks 2 | . . . 2 Combat Hostiles . | . . . . Follow-up Attacks 1 | . . . 1 Damage Inflicted 1375 | . 309 195 871 Guns 873 | . 246 45 582 Cannons . | . . . . Explosions 213 | . 63 150 . Melee 289 | . . . 289 Ramming . | . . . . Kinetic 873 | . 246 45 582 Thermal . | . . . . Explosive 213 | . 63 150 . Electromagnetic . | . . . . Impact 289 | . . . 289 Slashing . | . . . . Piercing . | . . . . Highest Corruption . | . . . . Average Corruption . | . . . . Corruption Purged . | . . . . Corruption Blocked . | . . . . Overload Shots . | . . . . Overflow Damage 226 | . . 18 208 Projectiles . | . . . . Explosions 18 | . . 18 . Melee 208 | . . . 208 Knockbacks 2 | . . . 2 Impact 2 | . . . 2 Kinetic . | . . . . Secondary . | . . . . Self-Inflicted Damage 13 | . . 13 . Shots 1 | . . 1 . Rammed . | . . . . Targets Rammed . | . . . . Kicked . | . . . . Crushed . | . . . . Highest Temperature 18 | . 18 9 . Average Temperature 9 | . 9 6 . Received Heat Transfer 402 | . 108 45 249 Siege Activations . | . . . . Robots Corrupted 2 | . . . 2 Combat Hostiles 1 | . . . 1 Parts Fried 1 | . . . 1 Impact Corruptions 5 | . . . 5 Robots Melted . | . . . . Combat Hostiles . | . . . . Parts Melted 1 | . . . 1 Heat Transferred . | . . . . Parts Sabotaged . | . . . . Parts Stolen . | . . . . Parts Stripped . | . . . . Power Chain Reactions . | . . . . Alert | -11 -10 -10 -10 ------- Run | Yrd Mat Min Sub Peak Influence 203 | . 203 100 . Initial 78 | . . 78 . Average 94 | . 113 81 . Maximum Alert Level 1 | . 1 . . Low Security (%) 95 | 100 92 100 . Level 1 4 | . 7 . . Level 2 . | . . . . Level 3 . | . . . . Level 4 . | . . . . Level 5 . | . . . . High Security . | . . . . Max Security . | . . . . Squads Dispatched 1 | . 1 . . Investigation . | . . . . Extermination . | . . . . Reinforcement 1 | . 1 . . Assault . | . . . . Garrison . | . . . . Intercept . | . . . . Searches Triggered . | . . . . Construction Impeded . | . . . . Haulers Reinforced . | . . . . Active Scanning Responses . | . . . . Cargo Convoy Interrupts . | . . . . Stealth | -11 -10 -10 -10 --------- Run | Yrd Mat Min Sub Distress Signals 1 | . 1 . . Communications Jammed . | . . . . Distress Signals . | . . . . Times Spotted 21 | . 11 2 8 Peak Tracking Total 5 | . 5 2 3 Tactical Retreats 2 | . 2 . . Traps | -11 -10 -10 -10 ------- Run | Yrd Mat Min Sub Traps Triggered . | . . . . Indirectly . | . . . . Trap Hack Attempts . | . . . . Triggered . | . . . . Disarmed . | . . . . Reprogrammed . | . . . . Reused . | . . . . Traps Extracted . | . . . . Installed . | . . . . Triggered . | . . . . Machines | -11 -10 -10 -10 ---------- Run | Yrd Mat Min Sub Machines Disabled 2 | . 1 . 1 Max in Single Turn 1 | . 1 . 1 Machines Repaired . | . . . . Machines Dismantled . | . . . . Machines Sabotaged . | . . . . Overloaded Fab Kills . | . . . . Hacking | -11 -10 -10 -10 --------- Run | Yrd Mat Min Sub Machines Accessed 1 | . . . 1 Terminals . | . . . . Fabricators . | . . . . Repair Stations . | . . . . Recycling Units . | . . . . Scanalyzers . | . . . . Garrison Access . | . . . . Total Hacks 1 | . . . 1 Successful 1 | . . . 1 Failed . | . . . . Catastrophic . | . . . . Database Lockouts . | . . . . Manual . | . . . . Terminals . | . . . . Fabricators . | . . . . Repair Stations . | . . . . Recycling Units . | . . . . Scanalyzers . | . . . . Garrison Access . | . . . . Terminal Hacks 1 | . . . 1 Derelict Proto ID Bank 1 | . . . 1 Fabricator Hacks . | . . . . Repair Station Hacks . | . . . . Recycling Unit Hacks . | . . . . Scanalyzer . | . . . . Garrison Access Hacks . | . . . . Unauthorized Hacks . | . . . . Terminals . | . . . . Fabricators . | . . . . Repair Stations . | . . . . Recycling Units . | . . . . Scanalyzers . | . . . . Garrison Access . | . . . . Data Cores Recovered . | . . . . Used . | . . . . Hacking Detections . | . . . . Full Trace Events . | . . . . Feedback Events . | . . . . Feedback Blocked . | . . . . Robot Schematics Acquired . | . . . . Robots Built . | . . . . Authchips . | . . . . Time . | . . . . Total Robot Build Rating . | . . . . Part Schematics Acquired . | . . . . Parts Built . | . . . . Authchips . | . . . . Time . | . . . . Total Part Build Rating . | . . . . Parts Repaired . | . . . . Time . | . . . . Parts Recycled . | . . . . Recycled Matter . | . . . . Retrieved Matter . | . . . . Retrieved Components . | . . . . Parts Scanalyzed . | . . . . Part Schematics Acquired . | . . . . Parts Damaged . | . . . . Bothacking | -11 -10 -10 -10 ------------ Run | Yrd Mat Min Sub Used RIF Installer . | . . . . Robots Hacked . | . . . . Non-combat . | . . . . Combat . | . . . . Robot Hacks Applied . | . . . . Relay Couplers Released . | . . . . Fabnet Peak Effective % . | . . . . Robots Rewired . | . . . . Allies Hacked . | . . . . Hacks Repelled . | . . . . Allies | -11 -10 -10 -10 -------- Run | Yrd Mat Min Sub Total Allies . | . . . . Largest Group . | . . . . Highest-Rated Group . | . . . . Highest-Rated Ally . | . . . . Total Orders . | . . . . Ally Attacks . | . . . . Total Damage . | . . . . Kills . | . . . . Allies Corrupted . | . . . . Allies Melted . | . . . . Intel | -11 -10 -10 -10 ------- Run | Yrd Mat Min Sub Robot Analysis Total . | . . . . Derelict Logs Recovered . | . . . . Drone Launches . | . . . . Drone Recoveries . | . . . . Exploration | -11 -10 -10 -10 ------------- Run | Yrd Mat Min Sub Turns Passed 1088 | 48 311 111 618 Spaces Moved 659 | 43 178 63 375 Core 1 | 1 . . . Treads . | . . . . Legs 300 | . 124 63 113 Wheels 358 | 42 54 . 262 Hover . | . . . . Flight . | . . . . Fastest Speed 50 | 50 90 120 110 Average Speed 113 | 88 112 120 116 Slowest Speed 190 | 90 190 120 190 Overloaded Moves . | . . . . Propulsion Burnouts . | . . . . Robots Hopped . | . . . . Cave-ins Triggered . | . . . . Exploration Rate (%) 19 | 3 30 27 17 Regions Visited 3 Branch Regions 2 Pre-discovered Areas . | . . . . Known Exits Taken . | . . . . Unknown Exits Taken 3 | 1 1 1 . Scrap Searched 5 | . . . 5 Spaces Dug . | . . . . Terrain Destroyed 31 | . 1 30 . Melee . | . . . . Projectile . | . . . . AOE 31 | . 1 30 . Terrain Rammed . | . . . . Walls Destroyed . | . . . . Machines Disabled . | . . . . Actions | -11 -10 -10 -10 --------- Run | Yrd Mat Min Sub Total 889 | 49 248 90 502 Wait 120 | . 24 24 72 Move 656 | 42 177 62 375 Hop . | . . . . Pick Up 17 | . 10 . 7 Fast Attach 12 | 6 2 . 4 Attach 1 | . . . 1 Detach . | . . . . Swap 13 | 1 5 . 7 Drop 12 | . 5 . 7 Fire 52 | . 25 4 23 Melee 6 | . . . 6 Ram . | . . . . Kick . | . . . . Crush . | . . . . Escape Stasis . | . . . . Rewire . | . . . . Trap . | . . . . Miscellaneous . | . . . . Route ------- -11/Scrapyard -10/Materials -10/Mines -10/Subcaves (discovered 1 exit: [*Mat]) History --------- Turn | Location | Event 5 | -11/Scrapyard | Discovered new exit (range 15) 49 | -11/Scrapyard | Entered Materials 301 | -10/Materials | Build established: Mutant 342 | -10/Materials | Discovered new exit (range 15) 360 | -10/Materials | Entered Mines 363 | -10/Mines | Met a Derelict bent on vengeance 367 | -10/Mines | Received a Rocket Launcher from a helpful Derelict 458 | -10/Mines | Discovered new exit (range 10) 471 | -10/Mines | Entered Subcaves 499 | -10/Subcaves | Core integrity fell below 50% 757 | -10/Subcaves | Discovered new exit (range 15) 912 | -10/Subcaves | Visited 4L-MR0's lab 926 | -10/Subcaves | Found Gun Armor 1034 | -10/Subcaves | Core integrity fell below 20% 1079 | -10/Subcaves | Ambushed by angry Subdweller bent on revenge 1089 | -10/Subcaves | Destroyed by 14-7G3(R) with Subdweller Beam Cannon Last Messages --------------- 01045_ Hvy. Hammer follow-up attack on IJ-O9T(R). 01048_ IJ-O9T(R) suffers critical hit (Smash). 01048_ Destroyed Sub. Monowheel. 01048_ IJ-O9T(R) system corrupted by crushing effect. 01048_ IJ-O9T(R) knocked back. 01049_ IJ-O9T(R) system terminally corrupted. 01052_ Acquired 30 matter. 01071_ Sub. Monowheel shoots sparks and powers down. 01077_ 9D-ZAV(u) deconstructs Twisted Machinery. 01077_ Sneak attack on 9D-ZAV(u). 01077_ Destroyed Wheel. 01077_ Destroyed Lgt. Ion Engine. 01077_ Destroyed Multitool. 01077_ 9D-ZAV(u) system corrupted by crushing effect. 01077_ 9D-ZAV(u) knocked back. 01078_ 9D-ZAV(u) system terminally corrupted. 01078_ Wheel fried. 01078_ 9D-ZAV(u) cries out in pain. 01079_ 14-7G3(R) angrily emerges from the Twisted Machinery. 01079_ 14-7G3(R): "MADSUB!" Map ----- +----------------------------------------------------+ | ?????????????????????######????# ###########"#??? | | ?????????????????????#% ]"##???#" ####???####%#??? | | ?????????????????????##" [ #???#" %"#####" ["#??? | | ??????????????????????#### #???#" = # ]"##??? | | ??########????####????# "#???## ##""#???? | | ### ## ###### ####### ###????## " ## "####???? | | # " "###??#######" "###??? | | #### ### " ### | | ###### # ## ## | | ?????###### ########## ### | | ??????????## #????????# #?? | | ???????????## #? ????## ####### #?? | | ????????????## ???### ##???### ##?? | | ?????????????# ??# %& ##??# ###??? | | ?????????????# ?## ### ##????? | | ?????????????## ## ##?????? | | ??????????????? #??????? | | ???????????????# ### #??????? | | ???????????????##" ### #?????? | | ?????????????????# ### ### #?? | | ?????????????????## ??## ##?### ## ??? | | ??????????????????###### ##??# #????###?# ???? | | ?????????????????????### #### ##???????? ??? | | ?????????????????#####" # ## ##???????? ?? | | ????????????????##" "% #????????# # ? | | ????????????????#" R@ #?????????##?? | | ????????????????# #" # #????????????? | | ????????????????### ######### ##????????????? | | ??????????????????## ????????# #?????????????? | | ???????????????????# ???????? ###?????????????? | | ??????????????????? ???????? #???????????????? | | ??????????????????" ????????#####???????????????? | | ?????????????????""" ????????????????????????????? | | ???????????????? ""#????????????????????????????? | | ???????????????? ##?????????????????????????????? | | ???????????????? ????????????????????????????????? | | ???????????????# ????????????????????????????????? | | ?????????????????????????????????????????????????? | | ?????????????????????????????????????????????????? | | ?????????????????????????????????????????????????? | | ?????????????????????????????????????????????????? | | ?????????????????????????????????????????????????? | | ?????????????????????????????????????????????????? | | ?????????????????????????????????????????????????? | | ?????????????????????????????????????????????????? | | ?????????????????????????????????????????????????? | | ?????????????????????????????????????????????????? | | ?????????????????????????????????????????????????? | | ?????????????????????????????????????????????????? | | ?????????????????????????????????????????????????? | +----------------------------------------------------+ Best States ------------- Heat Dissipation 25 Energy Generation 15 Energy Capacity 250 Matter Stores 300 Matter Capacity 300 Sight Range 16 Terrain Scan Density 10 Power Shielding 33 Evasion (%) 55 Trap Extractor Capacity 4 Item Schematics ----------------- None Robot Schematics ------------------ None Fabricated ------------ Nothing Alien Tech Used ----------------- None Achievements -------------- None Challenges ------------ None Game ------ Seed MomentumJunkFacilitator Manual? 0 Play Time 00:11:27 Cumulative 82.1 hours Start 2024.09.13 @ 20:39:48 End 2024.09.13 @ 20:49:30 Sessions 1 Manual Loads 0 Difficulty Rogue Special Mode None Game No. 142 Rogue 142 Adventurer 0 Explorer 0 Win Type - Total 0 Types 0/0/0/0/0/0/0/0/0 Lore% 45 Gallery% 48 Achievement% 39 Wizard Run 0 Options --------- Layout 0 ASCII 0 Keyboard 1 Movement Numpad Keybinds 0 Fullscreen 2 Font 18/SmallcapsGlow Map View 76x50 Zoom Use 0% Tactical HUD 1 Map Filters NONE Filters NONE Steam 1 RUN: bbd609f6-3ead-4989-b59f-9caf71354b2f